Workbook

Sheet 婚礼预算表
B2: KAYLA 和 JACOB 喜结连理
B5: 类别 | C5: 估计成本 | D5: 实际成本 | E5: 差额 | F5: 预算百分比 | J5: 未排序 | K5: 估计费用 | L5: 实际费用 | M5: 估计成本 - 排名值 | N5: 排名 | O5: # | P5: 已排序
B6: =P6 -> 宴会 | C6: =VLOOKUP(TBL_摘要[[#This Row],[类别]],TBL_RankingData,2,FALSE) -> ¥14,500 | D6: =IF(VLOOKUP(TBL_摘要[[#This Row],[类别]],TBL_RankingData,3,FALSE)=0,"",VLOOKUP(TBL_摘要[[#This Row],[类别]],TBL_RankingData,3,FALSE)) -> ¥12,800 | E6: =IF(OR(TBL_摘要[[#This Row],[估计成本]]="",TBL_摘要[[#This Row],[实际成本]]=""),"",TBL_摘要[[#This Row],[估计成本]]-TBL_摘要[[#This Row],[实际成本]]) -> ¥1,700 | F6: =TBL_摘要[[#This Row],[估计成本]]/SUM(TBL_摘要[估计成本]) -> 48.7% | J6: 宴会 | K6: =TBL_宴会[[#Totals],[估算金额]] -> 14500 | L6: =TBL_宴会[[#Totals],[实际费用]] -> 12800 | M6: =K6-O6/100 -> 14499.99 | N6: =_xlfn.RANK.AVG(M6,$M$6:$M$15) -> 1 | O6: 1 | P6: =INDEX(TBL_RankingData,MATCH(O6,$N$6:$N$15,0),1) -> 宴会
B7: =P7 -> 着装 | C7: =VLOOKUP(TBL_摘要[[#This Row],[类别]],TBL_RankingData,2,FALSE) -> ¥4,000 | D7: =IF(VLOOKUP(TBL_摘要[[#This Row],[类别]],TBL_RankingData,3,FALSE)=0,"",VLOOKUP(TBL_摘要[[#This Row],[类别]],TBL_RankingData,3,FALSE)) -> ¥2,900 | E7: =IF(OR(TBL_摘要[[#This Row],[估计成本]]="",TBL_摘要[[#This Row],[实际成本]]=""),"",TBL_摘要[[#This Row],[估计成本]]-TBL_摘要[[#This Row],[实际成本]]) -> ¥1,100 | F7: =TBL_摘要[[#This Row],[估计成本]]/SUM(TBL_摘要[估计成本]) -> 13.4% | J7: 着装 | K7: =TBL_着装[[#Totals],[预估费用]] -> 4000 | L7: =TBL_着装[[#Totals],[实际费用]] -> 2900 | M7: =K7-O7/100 -> 3999.98 | N7: 2 | O7: 2 | P7: 着装
B8: 花卉和装饰 | C8: =VLOOKUP(TBL_摘要[[#This Row],[类别]],TBL_RankingData,2,FALSE) -> ¥3,000 | D8: =IF(VLOOKUP(TBL_摘要[[#This Row],[类别]],TBL_RankingData,3,FALSE)=0,"",VLOOKUP(TBL_摘要[[#This Row],[类别]],TBL_RankingData,3,FALSE)) ->  | E8: =IF(OR(TBL_摘要[[#This Row],[估计成本]]="",TBL_摘要[[#This Row],[实际成本]]=""),"",TBL_摘要[[#This Row],[估计成本]]-TBL_摘要[[#This Row],[实际成本]]) ->  | F8: =TBL_摘要[[#This Row],[估计成本]]/SUM(TBL_摘要[估计成本]) -> 10.1% | J8: 花卉和装饰 | K8: =TBL_花卉和装饰[[#Totals],[预估费用]] -> 3000 | L8: =TBL_花卉和装饰[[#Totals],[实际费用]] -> 0 | M8: 2999.97 | N8: 3 | O8: 3 | P8: 花卉和装饰
B9: 图片和视频 | C9: =VLOOKUP(TBL_摘要[[#This Row],[类别]],TBL_RankingData,2,FALSE) -> ¥2,500 | D9: =IF(VLOOKUP(TBL_摘要[[#This Row],[类别]],TBL_RankingData,3,FALSE)=0,"",VLOOKUP(TBL_摘要[[#This Row],[类别]],TBL_RankingData,3,FALSE)) ->  | E9: =IF(OR(TBL_摘要[[#This Row],[估计成本]]="",TBL_摘要[[#This Row],[实际成本]]=""),"",TBL_摘要[[#This Row],[估计成本]]-TBL_摘要[[#This Row],[实际成本]]) ->  | F9: =TBL_摘要[[#This Row],[估计成本]]/SUM(TBL_摘要[估计成本]) -> 8.4% | J9: 音乐 | K9: =TBL_音乐[[#Totals],[预估费用]] -> 1800 | L9: =TBL_音乐[[#Totals],[实际费用]] -> 0 | M9: 1799.96 | N9: 5 | O9: 4 | P9: 图片和视频
B10: 音乐 | C10: =VLOOKUP(TBL_摘要[[#This Row],[类别]],TBL_RankingData,2,FALSE) -> ¥1,800 | D10: =IF(VLOOKUP(TBL_摘要[[#This Row],[类别]],TBL_RankingData,3,FALSE)=0,"",VLOOKUP(TBL_摘要[[#This Row],[类别]],TBL_RankingData,3,FALSE)) ->  | E10: =IF(OR(TBL_摘要[[#This Row],[估计成本]]="",TBL_摘要[[#This Row],[实际成本]]=""),"",TBL_摘要[[#This Row],[估计成本]]-TBL_摘要[[#This Row],[实际成本]]) ->  | F10: =TBL_摘要[[#This Row],[估计成本]]/SUM(TBL_摘要[估计成本]) -> 6.1% | J10: 图片和视频 | K10: =TBL_图片和视频[[#Totals],[预估费用]] -> 2500 | L10: =TBL_图片和视频[[#Totals],[实际费用]] -> 0 | M10: 2499.95 | N10: 4 | O10: 5 | P10: 音乐
B11: 惠赠和礼品 | C11: =VLOOKUP(TBL_摘要[[#This Row],[类别]],TBL_RankingData,2,FALSE) -> ¥1,100 | D11: =IF(VLOOKUP(TBL_摘要[[#This Row],[类别]],TBL_RankingData,3,FALSE)=0,"",VLOOKUP(TBL_摘要[[#This Row],[类别]],TBL_RankingData,3,FALSE)) ->  | E11: =IF(OR(TBL_摘要[[#This Row],[估计成本]]="",TBL_摘要[[#This Row],[实际成本]]=""),"",TBL_摘要[[#This Row],[估计成本]]-TBL_摘要[[#This Row],[实际成本]]) ->  | F11: =TBL_摘要[[#This Row],[估计成本]]/SUM(TBL_摘要[估计成本]) -> 3.7% | J11: 惠赠和礼品 | K11: =TBL_惠赠和礼品[[#Totals],[预估费用]] -> 1100 | L11: =TBL_惠赠和礼品[[#Totals],[实际费用]] -> 0 | M11: 1099.94 | N11: 6 | O11: 6 | P11: 惠赠和礼品
B12: =P12 -> 结婚戒指 | C12: =VLOOKUP(TBL_摘要[[#This Row],[类别]],TBL_RankingData,2,FALSE) -> ¥1,100 | D12: =IF(VLOOKUP(TBL_摘要[[#This Row],[类别]],TBL_RankingData,3,FALSE)=0,"",VLOOKUP(TBL_摘要[[#This Row],[类别]],TBL_RankingData,3,FALSE)) ->  | E12: =IF(OR(TBL_摘要[[#This Row],[估计成本]]="",TBL_摘要[[#This Row],[实际成本]]=""),"",TBL_摘要[[#This Row],[估计成本]]-TBL_摘要[[#This Row],[实际成本]]) ->  | F12: =TBL_摘要[[#This Row],[估计成本]]/SUM(TBL_摘要[估计成本]) -> 3.7% | J12: 典礼 | K12: =TBL_典礼[[#Totals],[预估费用]] -> 800 | L12: =TBL_典礼[[#Totals],[实际费用]] -> 0 | M12: 799.93 | N12: 8 | O12: 7 | P12: 结婚戒指
B13: 典礼 | C13: =VLOOKUP(TBL_摘要[[#This Row],[类别]],TBL_RankingData,2,FALSE) -> ¥800 | D13: =IF(VLOOKUP(TBL_摘要[[#This Row],[类别]],TBL_RankingData,3,FALSE)=0,"",VLOOKUP(TBL_摘要[[#This Row],[类别]],TBL_RankingData,3,FALSE)) ->  | E13: =IF(OR(TBL_摘要[[#This Row],[估计成本]]="",TBL_摘要[[#This Row],[实际成本]]=""),"",TBL_摘要[[#This Row],[估计成本]]-TBL_摘要[[#This Row],[实际成本]]) ->  | F13: =TBL_摘要[[#This Row],[估计成本]]/SUM(TBL_摘要[估计成本]) -> 2.7% | J13: 纸品 | K13: =TBL_纸品[[#Totals],[预估费用]] -> 500 | L13: =TBL_纸品[[#Totals],[实际费用]] -> 0 | M13: 499.92 | N13: 9 | O13: 8 | P13: 典礼
B14: 纸品 | C14: =VLOOKUP(TBL_摘要[[#This Row],[类别]],TBL_RankingData,2,FALSE) -> ¥500 | D14: =IF(VLOOKUP(TBL_摘要[[#This Row],[类别]],TBL_RankingData,3,FALSE)=0,"",VLOOKUP(TBL_摘要[[#This Row],[类别]],TBL_RankingData,3,FALSE)) ->  | E14: =IF(OR(TBL_摘要[[#This Row],[估计成本]]="",TBL_摘要[[#This Row],[实际成本]]=""),"",TBL_摘要[[#This Row],[估计成本]]-TBL_摘要[[#This Row],[实际成本]]) ->  | F14: =TBL_摘要[[#This Row],[估计成本]]/SUM(TBL_摘要[估计成本]) -> 1.7% | J14: 结婚戒指 | K14: =TBL_结婚戒指[[#Totals],[预估费用]] -> 1100 | L14: =TBL_结婚戒指[[#Totals],[实际费用]] -> 0 | M14: 1099.91 | N14: 7 | O14: 9 | P14: 纸品
B15: 交通 | C15: =VLOOKUP(TBL_摘要[[#This Row],[类别]],TBL_RankingData,2,FALSE) -> ¥450 | D15: =IF(VLOOKUP(TBL_摘要[[#This Row],[类别]],TBL_RankingData,3,FALSE)=0,"",VLOOKUP(TBL_摘要[[#This Row],[类别]],TBL_RankingData,3,FALSE)) ->  | E15: =IF(OR(TBL_摘要[[#This Row],[估计成本]]="",TBL_摘要[[#This Row],[实际成本]]=""),"",TBL_摘要[[#This Row],[估计成本]]-TBL_摘要[[#This Row],[实际成本]]) ->  | F15: =TBL_摘要[[#This Row],[估计成本]]/SUM(TBL_摘要[估计成本]) -> 1.5% | J15: 交通 | K15: =TBL_交通[[#Totals],[预估费用]] -> 450 | L15: =TBL_交通[[#Totals],[实际]] -> 0 | M15: 449.9 | N15: 10 | O15: 10 | P15: 交通
B16: 汇总 | C16: =SUBTOTAL(109,TBL_摘要[估计成本]) -> ¥29,750 | D16: =SUBTOTAL(109,TBL_摘要[实际成本]) -> ¥15,700 | E16: =TBL_摘要[[#Totals],[估计成本]]-TBL_摘要[[#Totals],[实际成本]] -> ¥14,050 | F16: =SUBTOTAL(109,TBL_摘要[预算百分比]) -> 100%

Sheet 预算明细
B2: 预算明细
B4: 宴会 | C4: 估算金额 | D4: 实际费用 | E4: 差额
B5: 场地和租金 | C5: ¥8,000.00 | D5: ¥7,800.00 | E5: =IF(OR(TBL_宴会[[#This Row],[估算金额]]="",TBL_宴会[[#This Row],[实际费用]]=""),"",TBL_宴会[[#This Row],[估算金额]]-TBL_宴会[[#This Row],[实际费用]]) -> ¥200.00
B6: 餐费和服务 | C6: ¥4,000.00 | D6: ¥4,200.00 | E6: =IF(OR(TBL_宴会[[#This Row],[估算金额]]="",TBL_宴会[[#This Row],[实际费用]]=""),"",TBL_宴会[[#This Row],[估算金额]]-TBL_宴会[[#This Row],[实际费用]]) -> (¥200.00)
B7: 饮料 | C7: ¥1,000.00 | D7: ¥800.00 | E7: =IF(OR(TBL_宴会[[#This Row],[估算金额]]="",TBL_宴会[[#This Row],[实际费用]]=""),"",TBL_宴会[[#This Row],[估算金额]]-TBL_宴会[[#This Row],[实际费用]]) -> ¥200.00
B8: 蛋糕 | C8: ¥1,000.00 | E8: =IF(OR(TBL_宴会[[#This Row],[估算金额]]="",TBL_宴会[[#This Row],[实际费用]]=""),"",TBL_宴会[[#This Row],[估算金额]]-TBL_宴会[[#This Row],[实际费用]]) -> 
B9: 杂项费用 | C9: ¥500.00 | E9: =IF(OR(TBL_宴会[[#This Row],[估算金额]]="",TBL_宴会[[#This Row],[实际费用]]=""),"",TBL_宴会[[#This Row],[估算金额]]-TBL_宴会[[#This Row],[实际费用]]) -> 
B10: 宴会总计 | C10: =SUBTOTAL(109,TBL_宴会[估算金额]) -> ¥14,500.00 | D10: =SUBTOTAL(109,TBL_宴会[实际费用]) -> ¥12,800.00 | E10: =TBL_宴会[[#Totals],[估算金额]]-TBL_宴会[[#Totals],[实际费用]] -> ¥1,700.00
B13: 着装 | C13: 预估费用 | D13: 实际费用 | E13: 差额
B14: 礼服、西服和/或连衣裙 | C14: ¥3,000.00 | D14: ¥2,900.00 | E14: =IF(OR(TBL_着装[[#This Row],[预估费用]]="",TBL_着装[[#This Row],[实际费用]]=""),"",TBL_着装[[#This Row],[预估费用]]-TBL_着装[[#This Row],[实际费用]]) -> ¥100.00
B15: 修改 | C15: ¥100.00 | E15: =IF(OR(TBL_着装[[#This Row],[预估费用]]="",TBL_着装[[#This Row],[实际费用]]=""),"",TBL_着装[[#This Row],[预估费用]]-TBL_着装[[#This Row],[实际费用]]) -> 
B16: 头饰和面纱 | C16: ¥200.00 | E16: =IF(OR(TBL_着装[[#This Row],[预估费用]]="",TBL_着装[[#This Row],[实际费用]]=""),"",TBL_着装[[#This Row],[预估费用]]-TBL_着装[[#This Row],[实际费用]]) -> 
B17: 配饰 | C17: ¥100.00 | E17: =IF(OR(TBL_着装[[#This Row],[预估费用]]="",TBL_着装[[#This Row],[实际费用]]=""),"",TBL_着装[[#This Row],[预估费用]]-TBL_着装[[#This Row],[实际费用]]) -> 
B18: 头发和化妆 | C18: ¥500.00 | E18: =IF(OR(TBL_着装[[#This Row],[预估费用]]="",TBL_着装[[#This Row],[实际费用]]=""),"",TBL_着装[[#This Row],[预估费用]]-TBL_着装[[#This Row],[实际费用]]) -> 
B19: 杂项费用 | C19: ¥100.00 | E19: =IF(OR(TBL_着装[[#This Row],[预估费用]]="",TBL_着装[[#This Row],[实际费用]]=""),"",TBL_着装[[#This Row],[预估费用]]-TBL_着装[[#This Row],[实际费用]]) -> 
B20: 着装总计 | C20: =SUBTOTAL(109,TBL_着装[预估费用]) -> ¥4,000.00 | D20: =SUBTOTAL(109,TBL_着装[实际费用]) -> ¥2,900.00 | E20: =TBL_着装[[#Totals],[预估费用]]-TBL_着装[[#Totals],[实际费用]] -> ¥1,100.00
B23: 花卉和装饰 | C23: 预估费用 | D23: 实际费用 | E23: 差额
B24: 典礼的花卉安排 | C24: ¥1,000.00 | E24: =IF(OR(TBL_花卉和装饰[[#This Row],[预估费用]]="",TBL_花卉和装饰[[#This Row],[实际费用]]=""),"",TBL_花卉和装饰[[#This Row],[预估费用]]-TBL_花卉和装饰[[#This Row],[实际费用]]) -> 
B25: 花童的花和篮子 | C25: ¥500.00 | E25: =IF(OR(TBL_花卉和装饰[[#This Row],[预估费用]]="",TBL_花卉和装饰[[#This Row],[实际费用]]=""),"",TBL_花卉和装饰[[#This Row],[预估费用]]-TBL_花卉和装饰[[#This Row],[实际费用]]) -> 
B26: 环形枕头 | C26: ¥100.00 | E26: =IF(OR(TBL_花卉和装饰[[#This Row],[预估费用]]="",TBL_花卉和装饰[[#This Row],[实际费用]]=""),"",TBL_花卉和装饰[[#This Row],[预估费用]]-TBL_花卉和装饰[[#This Row],[实际费用]]) -> 
B27: 花束 | C27: ¥500.00 | E27: =IF(OR(TBL_花卉和装饰[[#This Row],[预估费用]]="",TBL_花卉和装饰[[#This Row],[实际费用]]=""),"",TBL_花卉和装饰[[#This Row],[预估费用]]-TBL_花卉和装饰[[#This Row],[实际费用]]) -> 
B28: 翻领纽扣孔胸花 | C28: ¥100.00 | E28: =IF(OR(TBL_花卉和装饰[[#This Row],[预估费用]]="",TBL_花卉和装饰[[#This Row],[实际费用]]=""),"",TBL_花卉和装饰[[#This Row],[预估费用]]-TBL_花卉和装饰[[#This Row],[实际费用]]) -> 
B29: 襟花 | C29: ¥200.00 | E29: =IF(OR(TBL_花卉和装饰[[#This Row],[预估费用]]="",TBL_花卉和装饰[[#This Row],[实际费用]]=""),"",TBL_花卉和装饰[[#This Row],[预估费用]]-TBL_花卉和装饰[[#This Row],[实际费用]]) -> 
B30: 宴会装饰 | C30: ¥300.00 | E30: =IF(OR(TBL_花卉和装饰[[#This Row],[预估费用]]="",TBL_花卉和装饰[[#This Row],[实际费用]]=""),"",TBL_花卉和装饰[[#This Row],[预估费用]]-TBL_花卉和装饰[[#This Row],[实际费用]]) -> 
B31: 照明 | C31: ¥200.00 | E31: =IF(OR(TBL_花卉和装饰[[#This Row],[预估费用]]="",TBL_花卉和装饰[[#This Row],[实际费用]]=""),"",TBL_花卉和装饰[[#This Row],[预估费用]]-TBL_花卉和装饰[[#This Row],[实际费用]]) -> 
B32: 杂项费用 | C32: ¥100.00 | E32: =IF(OR(TBL_花卉和装饰[[#This Row],[预估费用]]="",TBL_花卉和装饰[[#This Row],[实际费用]]=""),"",TBL_花卉和装饰[[#This Row],[预估费用]]-TBL_花卉和装饰[[#This Row],[实际费用]]) -> 
B33: 花卉和装饰总计 | C33: =SUBTOTAL(109,TBL_花卉和装饰[预估费用]) -> ¥3,000.00 | D33: =SUBTOTAL(109,TBL_花卉和装饰[实际费用]) -> ¥0.00 | E33: =TBL_花卉和装饰[[#Totals],[预估费用]]-TBL_花卉和装饰[[#Totals],[实际费用]] -> ¥3,000.00
B36: 音乐 | C36: 预估费用 | D36: 实际费用 | E36: 差额
B37: 典礼乐手 | C37: ¥700.00 | E37: =IF(OR(TBL_音乐[[#This Row],[预估费用]]="",TBL_音乐[[#This Row],[实际费用]]=""),"",TBL_音乐[[#This Row],[预估费用]]-TBL_音乐[[#This Row],[实际费用]]) -> 
B38: 鸡尾酒会乐手 | C38: ¥300.00 | E38: =IF(OR(TBL_音乐[[#This Row],[预估费用]]="",TBL_音乐[[#This Row],[实际费用]]=""),"",TBL_音乐[[#This Row],[预估费用]]-TBL_音乐[[#This Row],[实际费用]]) -> 
B39: 宴会乐队、主持或娱乐 | C39: ¥200.00 | E39: =IF(OR(TBL_音乐[[#This Row],[预估费用]]="",TBL_音乐[[#This Row],[实际费用]]=""),"",TBL_音乐[[#This Row],[预估费用]]-TBL_音乐[[#This Row],[实际费用]]) -> 
B40: 音响系统或舞池租赁 | C40: ¥400.00 | E40: =IF(OR(TBL_音乐[[#This Row],[预估费用]]="",TBL_音乐[[#This Row],[实际费用]]=""),"",TBL_音乐[[#This Row],[预估费用]]-TBL_音乐[[#This Row],[实际费用]]) -> 
B41: 杂项费用 | C41: ¥200.00 | E41: =IF(OR(TBL_音乐[[#This Row],[预估费用]]="",TBL_音乐[[#This Row],[实际费用]]=""),"",TBL_音乐[[#This Row],[预估费用]]-TBL_音乐[[#This Row],[实际费用]]) -> 
B42: 音乐总计 | C42: =SUBTOTAL(109,TBL_音乐[预估费用]) -> ¥1,800.00 | D42: =SUBTOTAL(109,TBL_音乐[实际费用]) -> ¥0.00 | E42: =TBL_音乐[[#Totals],[预估费用]]-TBL_音乐[[#Totals],[实际费用]] -> ¥1,800.00
B45: 摄影和视频 | C45: 预估费用 | D45: 实际费用 | E45: 差额
B46: 摄影 | C46: ¥1,000.00 | E46: =IF(OR(TBL_图片和视频[[#This Row],[预估费用]]="",TBL_图片和视频[[#This Row],[实际费用]]=""),"",TBL_图片和视频[[#This Row],[预估费用]]-TBL_图片和视频[[#This Row],[实际费用]]) -> 
B47: 摄像 | C47: ¥800.00 | E47: =IF(OR(TBL_图片和视频[[#This Row],[预估费用]]="",TBL_图片和视频[[#This Row],[实际费用]]=""),"",TBL_图片和视频[[#This Row],[预估费用]]-TBL_图片和视频[[#This Row],[实际费用]]) -> 
B48: 其他打印和相册 | C48: ¥500.00 | E48: =IF(OR(TBL_图片和视频[[#This Row],[预估费用]]="",TBL_图片和视频[[#This Row],[实际费用]]=""),"",TBL_图片和视频[[#This Row],[预估费用]]-TBL_图片和视频[[#This Row],[实际费用]]) -> 
B49: 杂项费用 | C49: ¥200.00 | E49: =IF(OR(TBL_图片和视频[[#This Row],[预估费用]]="",TBL_图片和视频[[#This Row],[实际费用]]=""),"",TBL_图片和视频[[#This Row],[预估费用]]-TBL_图片和视频[[#This Row],[实际费用]]) -> 
B50: 摄影和视频总计 | C50: =SUBTOTAL(109,TBL_图片和视频[预估费用]) -> ¥2,500.00 | D50: =SUBTOTAL(109,TBL_图片和视频[实际费用]) -> ¥0.00 | E50: =TBL_图片和视频[[#Totals],[预估费用]]-TBL_图片和视频[[#Totals],[实际费用]] -> ¥2,500.00
B53: 惠赠和礼品 | C53: 预估费用 | D53: 实际费用 | E53: 差额
B54: 欢迎礼品 | C54: ¥700.00 | E54: =IF(OR(TBL_惠赠和礼品[[#This Row],[预估费用]]="",TBL_惠赠和礼品[[#This Row],[实际费用]]=""),"",TBL_惠赠和礼品[[#This Row],[预估费用]]-TBL_惠赠和礼品[[#This Row],[实际费用]]) -> 
B55: 派对礼品 | C55: ¥200.00 | E55: =IF(OR(TBL_惠赠和礼品[[#This Row],[预估费用]]="",TBL_惠赠和礼品[[#This Row],[实际费用]]=""),"",TBL_惠赠和礼品[[#This Row],[预估费用]]-TBL_惠赠和礼品[[#This Row],[实际费用]]) -> 
B56: 杂项费用 | C56: ¥200.00 | E56: =IF(OR(TBL_惠赠和礼品[[#This Row],[预估费用]]="",TBL_惠赠和礼品[[#This Row],[实际费用]]=""),"",TBL_惠赠和礼品[[#This Row],[预估费用]]-TBL_惠赠和礼品[[#This Row],[实际费用]]) -> 
B57: 惠赠和礼品总计 | C57: =SUBTOTAL(109,TBL_惠赠和礼品[预估费用]) -> ¥1,100.00 | D57: =SUBTOTAL(109,TBL_惠赠和礼品[实际费用]) -> ¥0.00 | E57: =TBL_惠赠和礼品[[#Totals],[预估费用]]-TBL_惠赠和礼品[[#Totals],[实际费用]] -> ¥1,100.00
B60: 典礼 | C60: 预估费用 | D60: 实际费用 | E60: 差额
B61: 场地费 | C61: ¥500.00 | E61: =IF(OR(TBL_典礼[[#This Row],[预估费用]]="",TBL_典礼[[#This Row],[实际费用]]=""),"",TBL_典礼[[#This Row],[预估费用]]-TBL_典礼[[#This Row],[实际费用]]) -> 
B62: 司仪费或教会捐献 | C62: ¥200.00 | E62: =IF(OR(TBL_典礼[[#This Row],[预估费用]]="",TBL_典礼[[#This Row],[实际费用]]=""),"",TBL_典礼[[#This Row],[预估费用]]-TBL_典礼[[#This Row],[实际费用]]) -> 
B63: 杂项费用 | C63: ¥100.00 | E63: =IF(OR(TBL_典礼[[#This Row],[预估费用]]="",TBL_典礼[[#This Row],[实际费用]]=""),"",TBL_典礼[[#This Row],[预估费用]]-TBL_典礼[[#This Row],[实际费用]]) -> 
B64: 典礼总计 | C64: =SUBTOTAL(109,TBL_典礼[预估费用]) -> ¥800.00 | D64: =SUBTOTAL(109,TBL_典礼[实际费用]) -> ¥0.00 | E64: =TBL_典礼[[#Totals],[预估费用]]-TBL_典礼[[#Totals],[实际费用]] -> ¥800.00
B67: 文具 | C67: 预估费用 | D67: 实际费用 | E67: 差额
B68: 按时出席卡 | C68: ¥50.00 | E68: =IF(OR(TBL_纸品[[#This Row],[预估费用]]="",TBL_纸品[[#This Row],[实际费用]]=""),"",TBL_纸品[[#This Row],[预估费用]]-TBL_纸品[[#This Row],[实际费用]]) -> 
B69: 邀请函和 RSVP | C69: ¥100.00 | E69: =IF(OR(TBL_纸品[[#This Row],[预估费用]]="",TBL_纸品[[#This Row],[实际费用]]=""),"",TBL_纸品[[#This Row],[预估费用]]-TBL_纸品[[#This Row],[实际费用]]) -> 
B70: 节目单 | C70: ¥50.00 | E70: =IF(OR(TBL_纸品[[#This Row],[预估费用]]="",TBL_纸品[[#This Row],[实际费用]]=""),"",TBL_纸品[[#This Row],[预估费用]]-TBL_纸品[[#This Row],[实际费用]]) -> 
B71: 席位卡 | C71: ¥50.00 | E71: =IF(OR(TBL_纸品[[#This Row],[预估费用]]="",TBL_纸品[[#This Row],[实际费用]]=""),"",TBL_纸品[[#This Row],[预估费用]]-TBL_纸品[[#This Row],[实际费用]]) -> 
B72: 菜单卡 | C72: ¥50.00 | E72: =IF(OR(TBL_纸品[[#This Row],[预估费用]]="",TBL_纸品[[#This Row],[实际费用]]=""),"",TBL_纸品[[#This Row],[预估费用]]-TBL_纸品[[#This Row],[实际费用]]) -> 
B73: 感谢便笺 | C73: ¥50.00 | E73: =IF(OR(TBL_纸品[[#This Row],[预估费用]]="",TBL_纸品[[#This Row],[实际费用]]=""),"",TBL_纸品[[#This Row],[预估费用]]-TBL_纸品[[#This Row],[实际费用]]) -> 
B74: 邮费 | C74: ¥50.00 | E74: =IF(OR(TBL_纸品[[#This Row],[预估费用]]="",TBL_纸品[[#This Row],[实际费用]]=""),"",TBL_纸品[[#This Row],[预估费用]]-TBL_纸品[[#This Row],[实际费用]]) -> 
B75: 杂项费用 | C75: ¥100.00 | E75: =IF(OR(TBL_纸品[[#This Row],[预估费用]]="",TBL_纸品[[#This Row],[实际费用]]=""),"",TBL_纸品[[#This Row],[预估费用]]-TBL_纸品[[#This Row],[实际费用]]) -> 
B76: 文具总计 | C76: =SUBTOTAL(109,TBL_纸品[预估费用]) -> ¥500.00 | D76: =SUBTOTAL(109,TBL_纸品[实际费用]) -> ¥0.00 | E76: =TBL_纸品[[#Totals],[预估费用]]-TBL_纸品[[#Totals],[实际费用]] -> ¥500.00
B79: 结婚戒指 | C79: 预估费用 | D79: 实际费用 | E79: 差额
B80: 结婚戒指 | C80: ¥1,000.00 | E80: =IF(OR(TBL_结婚戒指[[#This Row],[预估费用]]="",TBL_结婚戒指[[#This Row],[实际费用]]=""),"",TBL_结婚戒指[[#This Row],[预估费用]]-TBL_结婚戒指[[#This Row],[实际费用]]) -> 
B81: 戒指配饰 | C81: ¥100.00 | E81: =IF(OR(TBL_结婚戒指[[#This Row],[预估费用]]="",TBL_结婚戒指[[#This Row],[实际费用]]=""),"",TBL_结婚戒指[[#This Row],[预估费用]]-TBL_结婚戒指[[#This Row],[实际费用]]) -> 
B82: 结婚戒指总计 | C82: =SUBTOTAL(109,TBL_结婚戒指[预估费用]) -> ¥1,100.00 | D82: =SUBTOTAL(109,TBL_结婚戒指[实际费用]) -> ¥0.00 | E82: =TBL_结婚戒指[[#Totals],[预估费用]]-TBL_结婚戒指[[#Totals],[实际费用]] -> ¥1,100.00
B85: 交通 | C85: 预估费用 | D85: 实际 | E85: 差额
B86: 主汽车租赁 | C86: ¥100.00 | E86: =IF(OR(TBL_交通[[#This Row],[预估费用]]="",TBL_交通[[#This Row],[实际]]=""),"",TBL_交通[[#This Row],[预估费用]]-TBL_交通[[#This Row],[实际]]) -> 
B87: 来宾汽车租赁 | C87: ¥100.00 | E87: =IF(OR(TBL_交通[[#This Row],[预估费用]]="",TBL_交通[[#This Row],[实际]]=""),"",TBL_交通[[#This Row],[预估费用]]-TBL_交通[[#This Row],[实际]]) -> 
B88: 外地客人的交通费 | C88: ¥100.00 | E88: =IF(OR(TBL_交通[[#This Row],[预估费用]]="",TBL_交通[[#This Row],[实际]]=""),"",TBL_交通[[#This Row],[预估费用]]-TBL_交通[[#This Row],[实际]]) -> 
B89: 泊车员停车费 | C89: ¥50.00 | E89: =IF(OR(TBL_交通[[#This Row],[预估费用]]="",TBL_交通[[#This Row],[实际]]=""),"",TBL_交通[[#This Row],[预估费用]]-TBL_交通[[#This Row],[实际]]) -> 
B90: 杂项费用 | C90: ¥100.00 | E90: =IF(OR(TBL_交通[[#This Row],[预估费用]]="",TBL_交通[[#This Row],[实际]]=""),"",TBL_交通[[#This Row],[预估费用]]-TBL_交通[[#This Row],[实际]]) -> 
B91: 宴会总计 | C91: =SUBTOTAL(109,TBL_交通[预估费用]) -> ¥450.00 | D91: =SUBTOTAL(109,TBL_交通[实际]) -> ¥0.00 | E91: =TBL_交通[[#Totals],[预估费用]]-TBL_交通[[#Totals],[实际]] -> ¥450.00
